bitfinex-derivatives/quotes_ETHF0:USTF0_20210109
["timestamp","ask_amount","ask_price","bid_price","bid_amount"]
[1610208605748,4.00959,1217.8,1217.6,50.0]
[1610208606048,4.00959,1217.8,1217.5,53.6742]
[1610208606049,4.00959,1217.8,1217.7,50.0]
[1610208606448,4.00959,1217.8,1217.6,50.0]
[1610208606951,4.00959,1217.8,1217.7,50.0]
[1610208611353,4.00959,1217.8,1217.7,54.00959]
[1610208615556,5.64989,1217.8,1217.7,55.26331919]
[1610208616759,4.00959,1217.8,1217.7,55.26331919]
[1610208617961,2.189,1218.4,1217.7,55.26331919]
[1610208618162,107.66006359,1218.7,1218.2,53.6683]
[1610208618366,1.6031,1218.7,1218.2,53.6683]
[1610208618561,106.05545656,1218.9,1218.3,50.0]
[1610208618767,106.11523383,1219.0,1218.3,50.0]
[1610208618965,106.11523383,1219.0,1218.5,7.9145]
[1610208619166,106.12434707,1219.1,1218.5,7.9145]
[1610208619370,4.00959,1218.6,1218.5,7.9145]
[1610208620268,4.00959,1218.6,1218.5,57.9145]
[1610208622076,106.14182551,1219.2,1218.5,57.9145]
[1610208622474,106.14182551,1219.2,1218.6,50.0]
[1610208622875,2.29039326,1219.1,1218.7,50.0]
[1610208623075,2.29039326,1219.1,1218.8,64.2522]
[1610208623474,4.00959,1218.9,1218.8,118.26179]
[1610208623675,4.00959,1218.9,1218.8,68.26179]
[1610208623975,4.00959,1218.9,1218.8,118.26179]
[1610208624775,4.00959,1218.9,1218.8,114.2522]
[1610208625175,4.00959,1218.9,1218.8,50.0]
[1610208625576,4.00959,1218.9,1218.7,50.0]
[1610208625977,4.00959,1218.9,1218.6,50.0]
[1610208626777,4.00959,1218.9,1218.7,50.0]
[1610208627579,4.00959,1218.9,1218.6,50.0]
[1610208627777,4.00959,1218.9,1218.8,50.0]
[1610208628178,4.00959,1218.9,1218.5,59.5639]
[1610208628381,4.00959,1218.9,1218.7,50.0]
[1610208628579,4.00959,1218.9,1218.8,50.0]
[1610208628780,4.00959,1218.9,1218.8,115.1842]
[1610208631288,1.6916,1219.1,1218.8,115.1842]
[1610208631487,5.70119,1219.1,1218.8,115.1842]
[1610208631687,5.70119,1219.1,1218.9,50.0]
[1610208632487,5.70119,1219.1,1219.0,50.0]
[1610208633389,5.70119,1219.1,1219.0,54.00959]
[1610208634189,1.6916,1219.1,1219.0,54.00959]
[1610208634390,1.737,1219.4,1219.1,50.9681]
[1610208634590,106.0418784,1219.5,1219.1,50.0]
[1610208634791,106.01178089,1219.6,1219.3,50.2838]
[1610208635092,106.03678464,1219.7,1219.3,50.2838]
[1610208635493,106.03678464,1219.7,1219.6,4.00959]
[1610208636092,106.03678464,1219.7,1219.6,54.00959]
[1610208636292,108.32609153,1219.7,1219.6,54.00959]
[1610208636495,2.28930689,1219.7,1219.6,50.0]
[1610208636697,2.28930689,1219.7,1219.5,50.0]
[1610208637093,109.95626085,1219.7,1219.5,50.0]
[1610208637294,109.95626085,1219.7,1219.6,50.0]
[1610208637495,113.96585085,1219.7,1219.6,50.0]
[1610208637694,113.96585085,1219.7,1219.4,50.0]
[1610208638293,113.96585085,1219.7,1219.5,50.0]
[1610208638694,113.96585085,1219.7,1219.4,50.0]
[1610208638996,2.28946729,1219.6,1219.4,50.0]
[1610208639397,4.00959,1219.5,1219.3,100.2838]
[1610208639600,4.00959,1219.5,1219.3,50.2838]
[1610208639798,4.00959,1219.5,1219.4,50.0]
[1610208640399,4.00959,1219.5,1219.3,100.2838]
[1610208640701,4.00959,1219.5,1219.4,50.0]
[1610208641102,107.56067041,1219.7,1219.4,50.0]
[1610208641404,107.56067041,1219.7,1219.3,50.2838]
[1610208641405,107.56067041,1219.7,1219.5,50.0]
[1610208641604,4.00959,1219.6,1219.5,50.0]
[1610208641803,4.00959,1219.6,1219.4,50.0]
[1610208642403,4.00959,1219.6,1219.3,50.0]
[1610208642803,4.00959,1219.6,1219.2,50.0]
[1610208643004,2.28927986,1219.5,1219.2,50.0]
[1610208643203,2.28927986,1219.5,1219.4,50.0]
[1610208644208,2.28927986,1219.5,1219.3,50.0]
[1610208644605,2.28927986,1219.5,1219.4,50.0]
[1610208645105,2.28927986,1219.5,1219.2,50.0]
[1610208645305,4.00959,1219.6,1219.3,50.0]
[1610208645306,109.75702574,1219.6,1219.3,50.0]
[1610208645505,4.00959,1219.6,1219.3,50.0]
[1610208645705,4.00959,1219.4,1219.3,50.0]
[1610208645907,4.00959,1219.4,1219.2,50.0]
[1610208646104,8.01541081,1219.4,1219.2,50.0]
[1610208646304,8.01541081,1219.4,1219.1,62.8992]
[1610208646506,8.01541081,1219.4,1219.3,50.0]
[1610208646706,5.72609,1219.4,1219.3,50.0]
[1610208647307,8.01533399,1219.4,1219.3,50.0]
[1610208647507,8.01533399,1219.4,1219.2,50.0]
[1610208647909,8.01533399,1219.4,1219.3,50.0]
[1610208648308,8.01533399,1219.4,1219.2,50.0]
[1610208648510,8.01533399,1219.4,1219.3,50.0]
[1610208648908,8.01533399,1219.4,1219.2,50.0]
[1610208649409,8.01533399,1219.4,1219.1,62.8992]
[1610208649609,4.00574399,1219.4,1219.3,50.0]
[1610208650008,2.28936384,1219.3,1219.2,50.0]
[1610208650408,2.28936384,1219.3,1219.1,62.8992]
[1610208650808,2.28936384,1219.3,1219.2,50.0]
[1610208651608,6.29895384,1219.3,1219.2,50.0]
[1610208652011,6.29895384,1219.3,1219.1,112.8992]
[1610208652612,2.29034897,1219.2,1219.1,50.0]
[1610208653011,2.29034897,1219.2,1218.8,49.1253]
[1610208653012,2.29034897,1219.2,1219.0,50.0]
[1610208653210,2.29034897,1219.2,1218.8,49.1253]
[1610208653211,107.6622104,1219.2,1218.9,50.0]
[1610208653611,107.6622104,1219.2,1218.8,49.1253]
[1610208653612,4.00959,1219.0,1218.8,49.1253]
[1610208653812,4.00959,1219.0,1218.8,99.1253]
[1610208654012,6.51999,1219.0,1218.8,99.1253]
[1610208655013,6.51999,1219.0,1218.8,49.1253]
[1610208655413,2.29058559,1218.9,1218.8,49.1253]
[1610208656414,2.29058559,1218.9,1218.8,99.1253]
[1610208657414,2.29058559,1218.9,1218.8,49.1253]
[1610208658015,2.29058559,1218.9,1218.7,50.0]
[1610208658216,2.29058559,1218.9,1218.6,50.0]
[1610208658616,2.29058559,1218.9,1218.4,103.1627]
[1610208659016,2.29058559,1218.9,1218.4,53.1627]
[1610208659218,107.57805061,1218.9,1218.4,53.1627]
[1610208659717,4.00959,1218.5,1218.4,53.1627]
[1610208659915,4.00959,1218.5,1218.1,50.0]
[1610208660315,4.00959,1218.5,1218.0,56.3617]
[1610208660316,4.00959,1218.5,1218.0,106.3617]
[1610208660716,107.52511825,1218.7,1217.9,50.0]
[1610208660918,137.52511825,1218.7,1217.9,50.0]
[1610208661118,105.10611046,1218.6,1217.9,50.0]
[1610208661318,135.10611046,1218.6,1217.5,64.117]
[1610208661518,105.06709074,1218.5,1217.5,64.117]
[1610208661717,4.00959,1217.6,1217.5,64.117]
[1610208661918,4.00959,1217.6,1217.4,50.0]
[1610208662320,4.00959,1217.6,1217.5,50.0]
[1610208662719,4.00959,1217.6,1217.0,102.9739]
[1610208663319,4.00959,1217.6,1217.1,50.0]
[1610208663719,4.00959,1217.2,1217.0,102.9739]
[1610208663919,5.66919,1217.2,1217.0,102.9739]
[1610208664620,5.66919,1217.2,1217.1,50.0]
[1610208668122,5.66919,1217.2,1217.0,102.9739]
[1610208668523,5.66919,1217.2,1216.5,4.00959]
[1610208668524,5.66919,1217.2,1216.9,50.0]
[1610208668723,5.66919,1217.2,1217.0,50.0]
[1610208669123,5.66919,1217.2,1216.6,101.2598]
[1610208669524,5.66919,1217.2,1216.9,50.0]
[1610208669723,4.00959,1217.0,1216.6,51.2598]
[1610208669924,4.00959,1217.0,1216.8,50.0]
[1610208670324,4.00959,1217.0,1216.7,50.0]
[1610208670524,4.00959,1217.0,1216.6,51.2598]
[1610208670724,4.00959,1217.0,1216.8,50.0]
[1610208670926,4.00959,1217.0,1216.8,59.448]
[1610208671125,4.00959,1217.0,1216.8,9.448]
[1610208671924,4.00959,1217.0,1216.9,50.0]
[1610208672726,4.00959,1217.0,1216.8,59.448]
[1610208673025,4.00959,1217.0,1216.8,50.0]
[1610208673426,4.00959,1217.0,1216.7,50.0]
[1610208673829,4.00959,1216.8,1216.6,50.0]
[1610208674229,4.00959,1216.8,1216.3,50.0]
[1610208674630,4.00959,1216.8,1216.6,50.0]
[1610208676137,4.00959,1216.8,1216.5,50.0]
[1610208676539,4.00959,1216.8,1216.6,50.0]
[1610208676942,4.00959,1216.8,1216.7,50.0]
[1610208677242,4.00959,1216.8,1216.3,50.0]
[1610208677645,4.00959,1216.8,1216.4,50.0]
[1610208677845,4.00959,1216.5,1216.3,50.0]
[1610208678048,6.20719,1216.5,1216.3,50.0]
[1610208678246,6.20719,1216.5,1216.2,59.6161]
[1610208678447,6.20719,1216.5,1216.3,50.0]
[1610208678847,6.20719,1216.5,1215.7,56.131]
[1610208679047,6.20719,1216.5,1216.0,50.0]
[1610208679448,6.20719,1216.5,1215.7,56.131]
[1610208679849,4.00959,1215.8,1215.7,56.131]
[1610208680250,2.4729,1216.2,1215.7,56.131]
[1610208680750,2.4729,1216.2,1215.8,50.0]
[1610208680953,2.4729,1216.2,1215.7,50.0]
[1610208681250,2.1976,1216.5,1216.0,64.5901]
[1610208681850,4.00959,1216.3,1216.0,64.5901]
[1610208682250,4.00959,1216.3,1216.1,50.0]
[1610208682651,4.00959,1216.3,1216.2,50.0]
[1610208682851,2.1976,1216.5,1216.2,57.7593]
[1610208683053,2.0491,1216.9,1216.2,7.7593]
[1610208683252,106.5418677,1217.2,1216.2,7.7593]
[1610208683452,1.6596,1217.2,1216.1,50.0]
[1610208683653,104.9856327,1217.5,1216.4,53.894]
[1610208683853,1.6664,1217.2,1216.8,4.00959]
[1610208684054,1.6664,1217.2,1216.8,10.71969]
[1610208684253,1.6664,1217.2,1216.9,50.0]
[1610208684453,1.6664,1217.2,1216.9,98.5683]
[1610208684652,1.6664,1217.2,1216.9,48.5683]
[1610208684852,1.6664,1217.2,1217.0,50.0]
[1610208685854,4.00959,1217.1,1217.0,50.0]
[1610208686454,4.00959,1217.1,1216.9,48.5683]
[1610208687955,4.00959,1217.1,1217.0,50.0]
[1610208689464,1.6664,1217.2,1217.0,50.0]
[1610208689662,105.09850792,1217.8,1217.0,108.6291]
[1610208689862,4.00959,1217.4,1217.1,54.00959]
[1610208690062,6.17579,1217.4,1217.1,54.00959]
[1610208690562,6.17579,1217.4,1217.2,50.0]
[1610208690962,6.17579,1217.4,1217.3,50.0]
[1610208691364,6.17579,1217.4,1217.1,50.0]
[1610208691765,6.17579,1217.4,1217.0,50.0]
[1610208691966,4.00959,1217.2,1216.7,61.2318]
[1610208692165,4.00959,1217.2,1217.1,50.0]
[1610208692366,4.00959,1217.2,1216.8,50.0]
[1610208692565,4.00959,1217.2,1216.7,61.2318]
[1610208692766,4.00959,1217.2,1216.9,50.0]
[1610208693467,4.00959,1217.2,1216.8,50.0]
[1610208693768,4.00959,1217.2,1217.0,50.0]
[1610208693969,2.1662,1217.4,1217.0,50.0]
[1610208694167,2.1662,1217.4,1216.9,50.0]
[1610208694667,2.1662,1217.4,1216.8,50.0]
[1610208694868,2.1662,1217.4,1216.7,61.2318]
[1610208695069,105.26951152,1217.7,1216.8,50.0]
[1610208695266,105.30255796,1217.6,1216.8,50.0]
[1610208695467,107.49175796,1217.6,1216.8,50.0]
[1610208695868,4.00959,1216.9,1216.8,50.0]
[1610208697269,4.00959,1216.9,1216.7,111.2318]
[1610208697569,4.00959,1216.9,1216.8,50.0]
[1610208705381,4.00959,1216.9,1216.7,50.0]
[1610208705883,4.00959,1216.9,1216.6,50.0]
[1610208706385,4.00959,1216.9,1216.3,50.0]
[1610208706583,4.00959,1216.9,1216.3,107.9835]
[1610208706782,4.00959,1216.9,1216.7,50.0]
[1610208707183,4.00959,1216.9,1216.4,50.0]
[1610208707382,4.00959,1216.9,1216.6,50.0]
[1610208707983,4.00959,1216.7,1216.4,50.0]
[1610208708182,4.00959,1216.7,1216.5,50.0]
[1610208708384,4.00959,1216.7,1216.3,57.9835]
[1610208708585,4.00959,1216.7,1216.3,107.9835]
[1610208708985,4.00959,1216.7,1216.4,50.0]
[1610208709385,4.00959,1216.7,1216.5,50.0]
[1610208709588,4.00959,1216.7,1216.3,57.9835]
[1610208709985,2.182,1217.1,1216.4,50.0]
[1610208710185,105.00076108,1217.3,1216.4,50.0]
[1610208710386,104.9410382,1217.2,1216.4,50.0]
[1610208710587,106.6766382,1217.2,1216.4,50.0]
[1610208711187,2.29673084,1217.1,1216.3,107.9835]
[1610208711888,2.29673084,1217.1,1216.4,50.0]
[1610208712090,2.29673084,1217.1,1216.3,107.9835]
[1610208712488,2.29673084,1217.1,1216.4,50.0]
[1610208713790,2.29673084,1217.1,1216.5,50.0]
[1610208713991,4.00959,1216.6,1216.5,50.0]
[1610208714291,4.00959,1216.6,1216.4,50.0]
[1610208714792,4.00959,1216.6,1216.3,107.9835]
[1610208714992,4.00959,1216.6,1216.4,50.0]
[1610208717293,4.00959,1216.6,1216.3,50.0]
[1610208717493,6.10019,1216.6,1216.3,50.0]
[1610208717793,6.10019,1216.6,1215.8,50.0]
[1610208717993,4.00959,1215.9,1215.8,50.0]
[1610208718193,4.00959,1215.9,1215.7,55.27009]
[1610208718496,4.00959,1215.9,1215.8,50.0]
[1610208719697,4.00959,1215.9,1215.8,51.25547604]
[1610208722602,3.9979909,1215.9,1215.8,51.25547604]
[1610208726406,3.9979909,1215.9,1215.8,1.25547604]
[1610208726608,3.9979909,1215.9,1215.4,50.0]
[1610208727012,50.7666,1215.8,1215.4,50.0]
[1610208728110,4.00959,1215.5,1215.4,50.0]
[1610208728713,4.00959,1215.5,1215.3,50.0]
[1610208729214,4.00959,1215.5,1215.0,67.09869]
[1610208729414,4.00959,1215.5,1215.4,1.25609939]
[1610208730015,4.00959,1215.5,1215.4,51.25609939]
[1610208730915,4.00959,1215.5,1056.0,1.26000609]
[1610208730916,4.00959,1215.5,1215.3,50.0]
[1610208731516,4.00959,1215.5,1215.2,50.0]
[1610208731816,4.00959,1215.5,1214.9,50.0]
[1610208732016,4.00959,1215.0,1214.9,50.0]
[1610208732218,4.00959,1215.0,1214.8,63.7042]
[1610208732416,4.00959,1215.0,1214.6,2.066]
[1610208732618,4.00959,1215.0,1214.9,50.0]
[1610208733021,4.00959,1215.0,1214.7,50.0]
[1610208733420,4.00959,1215.0,1214.8,50.0]
[1610208733820,4.00959,1215.0,1214.6,47.8935]
[1610208734023,4.00959,1214.7,1214.6,47.8935]
[1610208734324,4.00959,1214.7,1214.6,97.8935]
[1610208735225,4.00959,1214.7,1214.6,99.15006774]
[1610208736626,4.00959,1214.7,1214.6,51.25656774]
[1610208737025,1.7479,1215.1,1214.6,51.25656774]
[1610208737425,1.7479,1215.1,1214.7,50.0]
[1610208737826,1.7479,1215.1,1214.6,50.0]
[1610208738025,4.00959,1214.7,1214.6,50.0]
[1610208738229,4.00959,1214.7,1214.4,50.0]
[1610208738628,4.00959,1214.7,1214.3,50.0]
[1610208739228,4.00959,1214.7,1214.2,50.0]
[1610208740029,4.00959,1214.3,1214.2,50.0]
[1610208741032,1.7309,1214.8,1214.2,50.0]
[1610208741632,1.7309,1214.8,1214.3,50.0]
[1610208742032,4.00959,1214.4,1214.2,54.00959]
[1610208742633,4.00959,1214.4,1214.2,4.00959]
[1610208742835,1.7733,1215.4,1214.2,4.00959]
[1610208743033,104.35647764,1215.6,1214.3,50.0]
[1610208743233,104.35647764,1215.6,1214.5,59.2127]
[1610208743435,104.35647764,1215.6,1214.5,60.8199]
[1610208743735,104.35647764,1215.6,1214.6,50.0]
[1610208744135,4.00959,1215.1,1215.0,13.41549]
[1610208744336,104.42914894,1215.9,1215.0,4.00959]
[1610208744736,106.28046867,1216.0,1215.0,4.00959]
[1610208745141,106.28046867,1216.0,1215.1,50.0]
[1610208745641,106.28046867,1216.0,1215.2,50.0]
[1610208745840,1.8376,1216.0,1215.2,50.0]
[1610208746041,4.00959,1215.3,1215.2,50.0]
[1610208746240,4.00959,1215.3,1215.1,50.0]
[1610208746740,4.00959,1215.3,1215.2,50.0]
[1610208746941,4.00959,1215.3,1215.0,50.0]
[1610208747543,4.00959,1215.3,1214.9,2.3857]
[1610208747742,2.5242,1215.7,1214.7,62.3672]
[1610208747940,2.5242,1215.7,1214.7,112.3672]
[1610208748143,2.5242,1215.7,1214.9,50.0]
[1610208748543,2.5242,1215.7,1214.8,54.00959]
[1610208748944,2.5242,1215.7,1214.8,4.00959]
[1610208749143,2.5242,1215.7,1215.0,50.0]
[1610208749343,2.5242,1215.7,1214.9,50.0]
[1610208749543,2.5242,1215.7,1214.7,62.3672]
[1610208749742,2.5242,1215.7,1215.0,50.0]
[1610208750043,2.5242,1215.7,1214.7,62.3672]
[1610208750243,4.00959,1214.8,1214.7,62.3672]
[1610208750443,4.00959,1214.8,1214.5,1.6072]
[1610208750645,4.00959,1214.8,1214.7,50.0]
[1610208750843,4.00959,1214.8,1214.6,50.0]
[1610208751244,4.00959,1214.8,1214.1,48.8855]
[1610208751444,6.29069,1214.8,1214.5,50.0]
[1610208752046,6.29069,1214.8,1214.1,48.8855]
[1610208752245,2.2811,1214.8,1214.2,50.0]
[1610208752646,2.2811,1214.8,1214.3,50.0]
[1610208753045,2.2811,1214.8,1214.2,50.0]
[1610208753446,2.2811,1214.8,1214.1,48.8855]
[1610208753447,2.2811,1214.8,1214.3,50.0]
[1610208753746,2.2811,1214.8,1214.2,50.0]
[1610208754146,2.2811,1214.8,1214.3,50.0]
[1610208754349,4.00959,1214.4,1214.3,50.0]
[1610208754548,4.00959,1214.4,1214.2,4.00959]
[1610208754948,4.00959,1214.4,1214.3,50.0]
[1610208756553,4.00959,1214.4,1214.3,51.25719953]
[1610208761554,4.00959,1214.4,1214.3,1.25719953]
[1610208762456,4.00959,1214.4,1214.3,51.25719953]
[1610208762857,4.00959,1214.4,1214.3,1.25719953]
[1610208764258,4.00959,1214.4,1214.3,51.25719953]
[1610208764459,4.00959,1214.4,1214.3,1.25719953]
[1610208764860,4.00959,1214.4,1214.3,51.25719953]
[1610208768663,4.00959,1214.4,1214.3,58.64009953]
[1610208768863,2.2811,1214.8,1214.3,58.64009953]
[1610208769064,2.4896,1215.1,1214.4,50.0]
[1610208769265,1.9313,1215.4,1214.4,50.0]
[1610208769466,106.77371304,1215.7,1214.5,106.6183]
[1610208769866,106.77371304,1215.7,1214.6,50.0]
[1610208770265,2.33078496,1215.6,1214.8,6.7448]
[1610208770466,2.33078496,1215.6,1214.7,50.0]
[1610208770665,2.33078496,1215.6,1214.9,115.6009]
[1610208770866,2.33078496,1215.6,1214.9,65.6009]
[1610208771267,2.33078496,1215.6,1215.0,50.0]
[1610208771667,2.33078496,1215.6,1215.1,50.0]
[1610208772069,2.33078496,1215.6,1215.0,50.0]
[1610208772268,4.00959,1215.1,1215.0,50.0]
[1610208772869,4.00959,1215.1,1214.9,50.0]
[1610208773270,4.00959,1215.1,1214.7,50.0]
[1610208773669,4.00959,1215.1,1214.8,50.0]
[1610208774068,4.00959,1215.1,1214.7,50.0]
[1610208774270,4.00959,1214.8,1214.7,50.0]
[1610208774469,4.00959,1214.8,1214.6,50.0]
[1610208775070,4.00959,1214.8,1214.5,120.2342]
[1610208775271,4.00959,1214.8,1214.5,117.7812]
[1610208775671,4.00959,1214.8,1214.5,67.7812]
[1610208775872,4.00959,1214.8,1214.4,50.0]
[1610208776476,4.00959,1214.5,1214.3,50.0]
[1610208777071,4.00959,1214.5,1214.2,50.0]
[1610208777472,4.00959,1214.5,1214.1,106.5419]
[1610208777872,4.00959,1214.5,1214.1,56.5419]
[1610208778073,1.9295,1214.8,1214.1,56.5419]
[1610208778273,1.9295,1214.8,1214.1,106.5419]
[1610208778474,1.9295,1214.8,1214.2,1.25721536]
[1610208778674,1.9295,1214.8,1214.2,51.25721536]
[1610208779276,1.9295,1214.8,1214.3,50.0]
[1610208780077,1.9295,1214.8,1214.4,50.0]
[1610208780477,1.9295,1214.8,1214.2,50.0]
[1610208780679,1.9295,1214.8,1214.3,4.00959]
[1610208780878,1.9295,1214.8,1214.4,50.0]
[1610208781278,1.9295,1214.8,1214.3,54.00959]
[1610208781578,1.9295,1214.8,1214.4,50.0]
[1610208781877,1.9295,1214.8,1214.3,4.00959]
[1610208782278,2.1101,1215.1,1214.3,54.00959]
[1610208782480,2.4919,1214.8,1214.3,4.00959]
[1610208782678,4.00959,1214.4,1214.3,4.00959]
[1610208782878,4.00959,1214.4,1214.3,54.00959]
[1610208784781,4.00959,1214.4,1214.3,50.0]
[1610208789190,4.00959,1214.4,1214.3,51.25697644]
[1610208789391,4.00959,1214.4,1214.3,58.98967644]
[1610208789592,2.4919,1214.8,1214.3,58.98967644]
[1610208789792,2.4919,1214.8,1214.4,50.0]
[1610208789994,2.1101,1215.1,1214.4,50.0]
[1610208790192,1.7883,1215.4,1214.4,96.6528]
[1610208790393,186.2252673,1215.7,1214.5,50.0]
[1610208790592,4.00959,1214.8,1214.7,4.00959]
[1610208790793,4.00959,1214.8,1214.7,12.80979]
[1610208791395,4.00959,1214.8,1214.7,62.80979]
[1610208791994,4.00959,1214.8,1214.7,64.06644442]
[1610208794895,4.00959,1214.8,1214.7,60.05685442]
[1610208795299,4.00959,1214.8,1214.7,10.05685442]
[1610208795697,4.00959,1214.8,1214.7,60.05685442]
[1610208796303,4.00959,1214.8,1214.7,10.05685442]
[1610208796502,4.00959,1214.8,1214.7,8.8002]
[1610208798706,6.20829,1214.8,1214.7,8.8002]
[1610208800808,6.20829,1214.8,1214.7,58.8002]
[1610208801609,6.20829,1214.8,1214.7,8.8002]
[1610208801909,6.20829,1214.8,1214.7,58.8002]
[1610208803912,4.00959,1214.8,1214.7,58.8002]
[1610208804612,4.00959,1214.8,1214.7,62.80979]
[1610208805714,4.00959,1214.8,1214.7,64.06661086]
[1610208812924,2.4139,1215.4,1214.7,64.06661086]
[1610208813122,69.8965,1215.7,1214.8,50.0]
[1610208813320,2.5242,1215.7,1214.8,50.0]
[1610208813523,5.9911,1215.8,1214.8,50.0]
[1610208813723,5.9911,1215.8,1214.9,99.8825]
[1610208813925,5.9911,1215.8,1215.0,50.0]
[1610208814328,5.9911,1215.8,1215.1,50.0]
[1610208814729,4.00959,1215.2,1215.0,50.0]
[1610208815129,4.00959,1215.2,1214.9,53.89209]
[1610208815330,4.00959,1215.2,1215.1,50.0]
[1610208815729,4.00959,1215.2,1215.0,50.0]
[1610208815930,4.00959,1215.2,1214.9,54.00959]
[1610208816131,4.00959,1215.2,1214.9,50.0]
[1610208816330,4.00959,1215.2,1215.0,50.0]
[1610208816730,4.00959,1215.2,1214.8,50.0]
[1610208816929,6.28159,1215.2,1214.8,50.0]
[1610208817130,6.28159,1215.2,1214.7,51.0281]
[1610208818634,4.00959,1214.8,1214.7,51.0281]
[1610208820833,4.00959,1214.8,1214.5,50.0]
[1610208821235,4.00959,1214.8,1214.3,68.4289]
[1610208821634,4.00959,1214.8,1214.3,118.4289]
[1610208822035,4.00959,1214.8,1214.3,68.4289]
[1610208822436,4.00959,1214.8,1214.1,50.0]
[1610208822636,50.7182,1214.6,1214.2,50.0]
[1610208822836,52.475,1214.6,1214.2,50.0]
[1610208823035,52.475,1214.6,1213.6,1.6324]
[1610208823036,52.475,1214.6,1214.0,50.0]
[1610208823236,52.475,1214.6,1213.9,50.0]
[1610208823638,52.475,1214.6,1213.7,50.0]
[1610208824039,52.475,1214.6,1213.9,50.0]
[1610208824240,1.7568,1214.6,1213.9,50.0]
[1610208824440,1.7568,1214.6,1213.8,50.0]
[1610208824640,1.7568,1214.6,1213.9,50.0]
[1610208825042,1.7568,1214.6,1214.0,50.0]
[1610208825443,1.7568,1214.6,1213.9,50.0]
[1610208825743,1.7568,1214.6,1214.1,50.0]
[1610208826346,1.7568,1214.6,1214.0,50.0]
[1610208826744,4.00959,1214.1,1213.9,50.0]
[1610208827146,4.00959,1214.1,1213.8,57.78849]
[1610208827344,4.00959,1214.1,1213.9,50.0]
[1610208827744,4.00959,1214.1,1214.0,50.0]
[1610208828244,4.00959,1214.1,1213.9,50.0]
[1610208828444,4.00959,1214.1,1213.8,57.78849]
[1610208828644,1.7568,1214.6,1214.0,50.0]
[1610208828844,32.6084,1214.9,1214.0,50.0]
[1610208829046,32.6084,1214.9,1213.9,50.0]
[1610208829246,2.6084,1214.9,1213.8,57.78849]
[1610208829447,171.70349587,1215.0,1213.8,57.78849]
[1610208829648,103.64389587,1215.0,1213.8,4.00959]
[1610208829847,145.91750661,1215.1,1213.9,49.1494]
[1610208830346,145.91750661,1215.1,1214.1,50.0]
[1610208830849,4.00959,1214.2,1214.0,4.00959]
[1610208831048,4.00959,1214.2,1214.1,50.0]
[1610208834252,4.00959,1214.2,1214.1,51.25727553]
[1610208834450,4.00959,1214.2,1214.1,58.21847553]
[1610208834751,4.00959,1214.4,1214.1,58.21847553]
[1610208835151,4.00959,1214.4,1214.2,50.0]
[1610208835452,4.00959,1214.4,1214.3,50.0]
[1610208836052,4.00959,1214.4,1214.2,51.25724939]
[1610208836251,4.00959,1214.4,1214.3,50.0]
[1610208836753,4.00959,1214.4,1214.3,54.00959]
[1610208836953,4.00959,1214.4,1214.3,50.0]
[1610208838154,4.00959,1214.4,1214.2,50.0]
[1610208838556,4.00959,1214.4,1214.1,56.9612]
[1610208838756,4.00959,1214.2,1214.1,50.0]
[1610208839158,4.00959,1214.2,1213.9,4.00959]
[1610208839360,4.00959,1214.2,1214.1,50.0]
[1610208839759,4.00959,1214.2,1214.0,50.0]
[1610208839959,4.00959,1214.2,1213.9,4.00959]
[1610208840160,4.00959,1214.2,1214.1,50.0]
[1610208841662,4.00959,1214.2,1214.1,51.25747183]
[1610208843462,4.00959,1214.2,1214.1,108.89517183]
[1610208844864,4.00959,1214.2,1214.1,112.90476183]
[1610208846763,4.00959,1214.4,1214.1,112.90476183]
[1610208846964,4.00959,1214.4,1214.2,50.0]
[1610208847264,4.00959,1214.4,1214.3,50.0]
[1610208847667,4.00959,1214.4,1214.2,50.0]
[1610208847865,4.00959,1214.4,1214.1,62.90476183]
[1610208848065,4.00959,1214.4,1214.3,50.0]
[1610208848266,4.00959,1214.4,1214.3,51.25709122]
[1610208848466,4.00959,1214.4,1214.3,1.25709122]
[1610208848866,4.00959,1214.4,1214.3,55.26668122]
[1610208849665,4.00959,1214.4,1214.3,54.00959]
[1610208855070,4.00959,1214.4,1214.3,55.26677544]
[1610208855871,4.00959,1214.4,1214.3,51.25718544]
[1610208856974,4.00959,1214.4,1214.3,55.26677544]
[1610208864888,4.00959,1214.4,1214.3,51.25718544]
[1610208865489,4.00959,1214.4,1214.3,1.25718544]
[1610208866090,4.00959,1214.4,1214.1,50.0]
[1610208866291,4.00959,1214.4,1213.6,2.3449]
[1610208866489,4.00959,1214.4,1214.0,50.0]
[1610208866689,4.00959,1214.4,1212.3,3.405]
[1610208866690,4.00959,1214.4,1213.7,50.0]
[1610208866889,67.0026,1214.5,1213.8,4.00959]
[1610208867089,67.0026,1214.5,1214.0,50.0]
[1610208867493,67.0026,1214.5,1213.8,55.26727379]
[1610208867691,67.0026,1214.5,1213.8,5.26727379]
[1610208868090,67.0026,1214.5,1214.0,50.0]
[1610208868291,67.0026,1214.5,1213.8,1.25768379]
[1610208868694,67.0026,1214.5,1214.0,50.0]
[1610208868896,4.00959,1214.1,1214.0,50.0]
[1610208869095,4.00959,1214.1,1213.7,4.00959]